Cogmind - Beta 17 @@@ ROGUE MODE // 2026.07.20 @ 14:17:08 Player: pinbox Result: Destroyed by X-67 Chaingunner with Heavy Machine Gun Performance ------------- Evolutions (4) 2000 Regions Visited (8) 1600 Robots Destroyed (64) 320 Value Destroyed (2077) 2077 Prototype IDs (4) 80 Alien Tech Used (0) 0 Bonus (698) 698 TOTAL SCORE: 6775 Bonus ------- Follower Combat Kills 218 Entered DSFs 500 Friendly Fire -20 Cogmind --------- Core Integrity 0/850 Matter 80/300 Energy 100/100 System Corruption 9% Temperature Cool (0) Movement Core (700) Ox13 Location -6/Factory Parts ------- > --- POWER (1) -------- (None) > --- PROPULSION (4) --- (None) > --- UTILITY (6) ------ High-capacity Storage Unit Enhanced Optical Array > --- WEAPON (4) ------- (None) > --- INVENTORY (20) --- Deuterium Engine Fission Core Advanced Heat Sink Huge Storage Unit Medium Matter Pod (0) Machine Analyzer Recoil Stabilizer Graphene Brace Peak State ------------ > --- POWER ------------ Fission Core > --- PROPULSION ------- Armored Treads Carbon-fiber Leg Carbon-fiber Leg Carbon-fiber Leg > --- UTILITY ---------- Improved Cooling System High-capacity Storage Unit Enhanced Optical Array Improved Target Analyzer Kinecellerator > --- WEAPON ----------- Advanced Beam Rifle Heavy Assault Rifle Heavy Machine Gun Antimatter Cannon > --- INVENTORY -------- Deuterium Engine Improved Deuterium Engine Fission Core Improved Medium Treads Advanced Heat Sink Huge Storage Unit Medium Matter Pod Machine Analyzer Graphene Brace Plasma Flamer [Rating: 56] Favorites ----------- Power Deuterium Engine Engine Deuterium Engine Power Core Fission Core Propulsion Aluminum Leg Treads Armored Treads Leg Aluminum Leg Wheel Wheel Flight Unit Flight Unit Utility High-capacity Storage Unit Device Seismic Detector Storage High-capacity Storage Unit Processor Enhanced Optical Array Protection Hardened Medium Armor Plating Weapon Advanced Beam Rifle Energy Gun Advanced Beam Rifle Energy Cannon Ion Cannon Ballistic Gun Light Assault Rifle Ballistic Cannon Antimatter Cannon Launcher Grenade Launcher Special Weapon Plasma Flamer Build | -11 -10 -10 -10 -9 -8 -7 -7 -6 ------- Run | Yrd Mat Min Exi Min Mat Fac DSF Fac Slots Evolved 8 | . . . . . 4 2 . 2 Power . | . . . . . . . . . Propulsion 2 | . . . . . 1 1 . . Utility 4 | . . . . . 2 1 . 1 Weapon 2 | . . . . . 1 . . 1 Parts Attached 64 | 7 5 4 1 2 16 4 7 18 Power 6 | 1 . 1 . . 1 . 1 2 Engine 4 | 1 . 1 . . 1 . . 1 Core 2 | . . . . . . . 1 1 Reactor . | . . . . . . . . . Propulsion 22 | 2 . 3 . 1 5 . 4 7 Treads 8 | 2 . . . . . . 3 3 Leg 11 | . . 1 . 1 4 . 1 4 Wheel 1 | . . 1 . . . . . . Hover . | . . . . . . . . . Flight 2 | . . 1 . . 1 . . . Utility 19 | 2 2 . 1 1 5 2 2 4 Device 10 | 1 . . . 1 4 2 . 2 Storage 3 | 1 1 . 1 . . . . . Processor 2 | . . . . . . . . 2 Hackware . | . . . . . . . . . Protection 4 | . 1 . . . 1 . 2 . Artifact . | . . . . . . . . . Weapon 17 | 2 3 . . . 5 2 . 5 Energy Gun 7 | 1 3 . . . 3 . . . Energy Cannon 1 | . . . . . 1 . . . Ballistic Gun 3 | 1 . . . . . . . 2 Ballistic Cannon 4 | . . . . . . 2 . 2 Launcher 1 | . . . . . 1 . . . Special Weapon 1 | . . . . . . . . 1 Impact Weapon . | . . . . . . . . . Slashing Weapon . | . . . . . . . . . Piercing Weapon . | . . . . . . . . . Special Melee Weapon . | . . . . . . . . . Unidentified Prototypes 4 | . . . . 1 2 . . 1 Parts Lost 43 | . 1 3 . . 3 . 8 28 Power 3 | . . . . . . . . 3 Propulsion 14 | . . 2 . . 1 . 2 9 Utility 13 | . . 1 . . 2 . 4 6 Weapon 13 | . 1 . . . . . 2 10 Highest Loss Streak 10 | . 1 2 . . 3 . 5 10 To Critical Strikes . | . . . . . . . . . Average Backups 9 | . 3 6 7 8 12 16 12 10 Power 1 | . 1 1 1 1 1 2 2 2 Propulsion . | . . . . . 2 4 1 . Utility 3 | . 1 1 1 1 3 4 4 5 Weapon 3 | . . 4 5 5 5 6 4 1 Tool/Special . | . . . . . . . . . Unused Backups 11 | . . . . . 2 . 1 8 Power 4 | . . . . . 1 . 1 2 Propulsion . | . . . . . . . . . Utility 6 | . . . . . . . . 6 Weapon 1 | . . . . . 1 . . . Tool/Special . | . . . . . . . . . Average Slot Usage (%) 89 | . 99 84 100 99 92 90 89 73 Engine 8 | . 14 14 14 14 9 7 4 . Core 1 | . . . . . . . 2 5 Treads 8 | . 28 9 . . . . 16 7 Leg 14 | . . . 14 24 26 23 12 14 Wheel 2 | . . 2 14 2 . . . . Device 11 | . 8 12 14 14 17 21 7 6 Storage 10 | . 14 14 14 14 9 7 7 6 Processor 1 | . . . . . . . . 6 Protection 3 | . 5 . . . 4 7 13 2 Energy Gun 18 | . 14 28 28 28 23 23 12 7 Ballistic Gun 2 | . 13 . . . . . . 2 Ballistic Cannon 1 | . . . . . . . 7 5 Peak Build Rating 56 | 7 7 8 8 16 36 39 45 56 Average Rating 24 | 5 6 6 8 8 27 37 40 44 On Entrance 17 | . 7 7 8 8 9 36 36 45 Avg Prop Armor Cover (%) 8 | . 10 8 10 10 . . 2 8 Naked Turns . | . . . . . . . . . Heaviest Build 100 | 12 30 30 50 50 66 78 92 100 Greatest Support 60 | 40 40 20 10 20 40 50 60 45 Greatest Overweight (x) 16 | . 1 9 4 4 2 1 4 16 Average Overweight (x) 1 | . . 1 2 2 1 1 1 1 Largest Inventory Capacity 20 | 8 15 15 20 20 20 20 20 20 Average Capacity 18 | 7 14 15 17 20 20 20 20 20 Most Carried 19 | 1 7 8 8 9 19 19 18 14 Average Carried 9 | . 3 6 7 8 13 18 13 10 Final Capacity 20 | 8 15 15 20 20 20 20 20 20 Final Carried 19 | 1 7 7 7 9 19 17 12 8 Class Distribution -------------------- 49% | Mutant 19% | Tank 14% | Gunner 12% | Scavenger-Tank 4% | Skirmisher Dominant Class ---------------- Mutant | -10/Materials Mutant | -10/Mines Mutant | -10/Exiles Mutant | -9/Mines Tank | -8/Materials Tank | -7/Factory Scavenger-Tank | -7/DSF Gunner | -6/Factory Resources | -11 -10 -10 -10 -9 -8 -7 -7 -6 ----------- Run | Yrd Mat Min Exi Min Mat Fac DSF Fac Matter Collected 1229 | 209 155 50 . 50 166 . 236 363 Remotely . | . . . . . . . . . Salvage Created 2327 | 101 507 72 . . 458 . 371 818 Parts 124 | 7 30 10 . . 32 . 18 27 Haulers Intercepted 3 | . 1 . . . 1 . 1 . Recyclers Shooed 7 | . 1 . . . 6 . . . Parts Field Recycled . | . . . . . . . . . Retrieved Matter . | . . . . . . . . . Parts Self-Destructed . | . . . . . . . . . Prevented . | . . . . . . . . . Parts Restored . | . . . . . . . . . Kills | -11 -10 -10 -10 -9 -8 -7 -7 -6 ------- Run | Yrd Mat Min Exi Min Mat Fac DSF Fac Combat Hostiles Destroyed 52 | . 13 4 . . 9 . 9 17 Melee 1 | . . . . . . . . 1 Guns 34 | . 13 4 . . 4 . 5 8 Cannons 7 | . . . . . 1 . 3 3 AOE 6 | . . . . . 3 . 1 2 Classes Destroyed 16 | 2 4 1 . . 3 . 1 5 Worker 4 | . . 1 . . 2 . . 1 Builder 1 | . 1 . . . . . . . Tunneler 1 | 1 . . . . . . . . Hauler 3 | . 1 . . . 1 . 1 . Recycler 1 | 1 . . . . . . . . Watcher 1 | . . . . . . . . 1 Swarmer 17 | . 6 4 . . 4 . 3 . Saboteur 1 | . . . . . . . . 1 Grunt 23 | . 7 . . . 1 . 3 12 Brawler 1 | . . . . . . . . 1 Duelist 1 | . . . . . . . 1 . Sentry 3 | . . . . . 3 . . . Specialist 2 | . . . . . . . . 2 Hunter 2 | . . . . . 1 . 1 . Programmer 1 | . . . . . . . . 1 Heavy 2 | . . . . . 1 . 1 . Best Kill Streak 5 | 2 5 3 . . 5 . 3 5 Combat Bots Only 5 | . 5 3 . . 5 . 3 4 Max Kills in Single Turn 2 | 1 1 1 . . 2 . 1 2 Gunslinging . | . . . . . . . . . Exploded 2 | . . . . . 2 . 1 1 Melee 1 | . . . . . . . . 1 Uniques/NPCs Destroyed . | . . . . . . . . . Combat | -11 -10 -10 -10 -9 -8 -7 -7 -6 -------- Run | Yrd Mat Min Exi Min Mat Fac DSF Fac Hostile Shots Fired 520 | . 72 24 . . 22 . 103 299 Missed 146 | . 22 4 . . 5 . 28 87 Hits 374 | . 50 20 . . 17 . 75 212 Melee 15 | . . . . . . . 12 3 Projectile 359 | . 50 20 . . 17 . 63 209 Critical Strikes 21 | . 2 . . . 2 . 8 9 Part Disruptions 4 | . 1 . . . . . . 3 Damage Taken 6918 | . 567 158 . . 477 . 1813 3903 Core 1350 | . 110 7 . . 125 . 246 862 Absorbed by Shields 380 | . . . . . . . 152 228 Core Remaining (%) 73 | 100 . . . 53 77 . 64 . Volleys Fired 174 | 5 44 11 . 3 25 . 35 51 Largest 4 | 2 2 2 . 2 3 . 3 4 Hottest 201 | 60 60 100 . 100 183 . 159 201 Shots Fired 394 | 10 86 22 . 6 66 . 83 121 Gun 288 | 10 86 22 . 6 51 . 44 69 Cannon 90 | . . . . . 13 . 36 41 Launcher 5 | . . . . . 2 . 3 . Special 11 | . . . . . . . . 11 Kinetic 131 | 5 44 . . . . . 36 46 Thermal 221 | . 10 22 . 6 64 . 44 75 Explosive 5 | . . . . . 2 . 3 . Electromagnetic 37 | 5 32 . . . . . . . Robot Hit Streak 11 | 9 11 3 . 4 6 . 7 10 Robot Miss Streak 5 | . 5 5 . 2 3 . 5 4 Penetration Max . | . . . . . . . . . Secondary Targets 5 | . 2 2 . . 1 . . . Max Gunslinging Chain 1 | . 1 1 . . 1 . . . Shots Hit Robots 221 | 9 51 10 . 4 33 . 47 67 Core Hits 105 | 4 23 5 . 1 19 . 19 34 Critical Kills . | . . . . . . . . . Critical Parts Destroyed . | . . . . . . . . . Critical Strikes 14 | 1 . 2 . 1 1 . 2 7 Burn 11 | . . 2 . 1 1 . 2 5 Blast 2 | . . . . . . . . 2 Corrupt 1 | 1 . . . . . . . . Melee Attacks . | . . . . . . . . . Impact . | . . . . . . . . . Slashing . | . . . . . . . . . Piercing . | . . . . . . . . . Sneak Attacks . | . . . . . . . . . Combat Hostiles . | . . . . . . . . . Follow-up Attacks . | . . . . . . . . . Damage Inflicted 5432 | 101 606 126 . 49 952 . 1309 2289 Guns 2788 | 101 570 126 . 49 477 . 520 945 Cannons 1337 | . . . . . 185 . 490 662 Explosions 1166 | . 36 . . . 263 . 299 568 Melee . | . . . . . . . . . Ramming 44 | . . . . . 27 . . 17 Kinetic 1427 | 35 235 . . . . . 490 667 Thermal 2557 | . 58 126 . 49 662 . 520 1142 Explosive 1025 | . . . . . 263 . 299 463 Electromagnetic 379 | 66 313 . . . . . . . Impact . | . . . . . . . . . Slashing . | . . . . . . . . . Piercing . | . . . . . . . . . Highest Corruption 9 | . . . . . . . . 9 Average Corruption 2 | . . . . . . . . 2 Corruption Purged . | . . . . . . . . . Corruption Blocked . | . . . . . . . . . Effects 18 | . . . . . . . . 18 Message Errors 6 | . . . . . . . . 6 Matter Fused 2 | . . . . . . . . 2 Heat Flow Errors 3 | . . . . . . . . 3 Energy Discharges 2 | . . . . . . . . 2 Parts Fused 1 | . . . . . . . . 1 Data Loss (minor) 2 | . . . . . . . . 2 Misfires 2 | . . . . . . . . 2 Overload Shots . | . . . . . . . . . Overflow Damage 152 | . . . . . 10 . 25 117 Projectiles 26 | . . . . . . . 22 4 Explosions 126 | . . . . . 10 . 3 113 Melee . | . . . . . . . . . Knockbacks 12 | . . . . . . . 3 9 Impact . | . . . . . . . . . Kinetic 10 | . . . . . . . 3 7 Secondary 2 | . . . . . . . . 2 Self-Inflicted Damage 292 | . 26 . . . 72 . . 194 Shots 7 | . 1 . . . 3 . . 3 Rammed . | . . . . . . . . . Targets Rammed 8 | . . . . . 4 . . 4 Kicked 8 | . . . . . 4 . . 4 Crushed . | . . . . . . . . . Highest Temperature 3532 | 40 252 276 . 78 299 . 3532 422 Average Temperature 263 | 17 81 110 . 37 106 . 653 112 Received Heat Transfer 1320 | . 201 . . . 90 . 125 904 Effects 56 | . . . . . 9 . 46 1 Shutdowns 9 | . . . . . . . 8 1 Energy Bleed 8 | . . . . . 1 . 7 . Interference 13 | . . . . . 8 . 5 . Matter Decay 6 | . . . . . . . 6 . Short Circuit 1 | . . . . . . . 1 . Damage (minor) 3 | . . . . . . . 3 . Damage (major) 14 | . . . . . . . 14 . Damage (core) 2 | . . . . . . . 2 . Siege Activations . | . . . . . . . . . Martial Activations . | . . . . . . . . . Shielding Activations . | . . . . . . . . . Robots Disrupted . | . . . . . . . . . Combat Hostiles . | . . . . . . . . . Robots Corrupted . | . . . . . . . . . Combat Hostiles . | . . . . . . . . . Parts Fried 1 | . 1 . . . . . . . Impact Corruptions . | . . . . . . . . . Robots Melted 4 | . . . . . 1 . . 3 Combat Hostiles 4 | . . . . . 1 . . 3 Parts Melted 7 | . . 3 . . 1 . 1 2 Heat Transferred 6260 | . 100 518 . 222 1480 . 1110 2830 Parts Sabotaged 3 | . . . . . . . . 3 Parts Stolen . | . . . . . . . . . Parts Stripped . | . . . . . . . . . Power Chain Reactions 2 | . 1 . . . 1 . . . Alert | -11 -10 -10 -10 -9 -8 -7 -7 -6 ------- Run | Yrd Mat Min Exi Min Mat Fac DSF Fac Maximum Alert Level 1 | . . . . . 1 . 1 . Low Security (%) 91 | 100 100 100 . 100 79 100 65 100 Level 1 8 | . . . . . 20 . 34 . Level 2 . | . . . . . . . . . Level 3 . | . . . . . . . . . Level 4 . | . . . . . . . . . Level 5 . | . . . . . . . . . High Security . | . . . . . . . . . Max Security . | . . . . . . . . . Sterilizations 1 | . . . . . . . 1 . Peak Influence 250 | 5 154 89 . 81 250 27 224 169 Initial 117 | . . 39 . . . 27 . 117 Average 78 | 1 81 24 . 13 128 6 129 73 Influence Increases 2035 | 10 430 95 . 91 535 2 278 594 Destroy 0b10 Robot/C 1240 | . 260 80 . 60 320 . 180 340 Destroy 0b10 Robot/NC 70 | 10 10 5 . . 25 . 10 10 Destroy Leader 236 | . 52 10 . 10 82 . 30 52 Allied During Kill 77 | . . . . 21 56 . . . Successful Hack 40 | . 26 . . . 12 2 . . Disable Machine 180 | . 15 . . . 30 . . 135 Destroy Structure 87 | . 7 . . . 10 . 13 57 Lose Combat Pursuer 105 | . 60 . . . . . 45 . Influence Decreases 2020 | 10 330 195 . 91 474 63 54 803 Entered New Map 202 | . . 61 . . . 34 . 107 Time Decay 1416 | 10 320 114 . 91 404 29 . 448 Lost Part 342 | . 10 20 . . 30 . 34 248 Lost Ally 60 | . . . . . 40 . 20 . Squads Dispatched 10 | . 2 . . . 2 . 1 5 Investigation 1 | . . . . . . . . 1 Extermination 1 | . . . . . . . . 1 Reinforcement 8 | . 2 . . . 2 . 1 3 Assault . | . . . . . . . . . Garrison . | . . . . . . . . . Intercept . | . . . . . . . . . Searches Triggered . | . . . . . . . . . Construction Impeded 3 | . . . . . . . . 3 Haulers Reinforced . | . . . . . . . . . Active Scanning Responses . | . . . . . . . . . Cargo Convoy Interrupts 1 | . . . . . . . . 1 Stealth | -11 -10 -10 -10 -9 -8 -7 -7 -6 --------- Run | Yrd Mat Min Exi Min Mat Fac DSF Fac Distress Signals 5 | . 4 . . . 1 . . . Communications Jammed . | . . . . . . . . . Distress Signals . | . . . . . . . . . Times Spotted 103 | . 25 4 . 3 22 . 14 35 Peak Tracking Total 10 | . 6 3 . 3 5 . 4 10 Tactical Retreats 5 | . 2 . . . . . 3 . Traps | -11 -10 -10 -10 -9 -8 -7 -7 -6 ------- Run | Yrd Mat Min Exi Min Mat Fac DSF Fac Traps Triggered 6 | . 2 . . . 1 . 1 2 Indirectly . | . . . . . . . . . Trap Hack Attempts . | . . . . . . . . . Triggered . | . . . . . . . . . Disarmed . | . . . . . . . . . Reprogrammed . | . . . . . . . . . Reused . | . . . . . . . . . Traps Extracted . | . . . . . . . . . Installed . | . . . . . . . . . Triggered . | . . . . . . . . . Machines | -11 -10 -10 -10 -9 -8 -7 -7 -6 ---------- Run | Yrd Mat Min Exi Min Mat Fac DSF Fac Machines Disabled 12 | . 1 . . . 2 . . 9 Max in Single Turn 4 | . 1 . . . 2 . . 4 Machines Repaired . | . . . . . . . . . Machines Dismantled . | . . . . . . . . . Machines Sabotaged . | . . . . . . . . . Overloaded Fab Kills . | . . . . . . . . . Hacking | -11 -10 -10 -10 -9 -8 -7 -7 -6 --------- Run | Yrd Mat Min Exi Min Mat Fac DSF Fac Machines Accessed 22 | . 7 . 4 . 4 4 . 3 Terminals 12 | . 7 . . . 1 2 . 2 Fabricators . | . . . . . . . . . Repair Stations . | . . . . . . . . . Recycling Units 3 | . . . . . 2 . . 1 Scanalyzers 3 | . . . . . 1 2 . . Garrison Access . | . . . . . . . . . Total Hacks 104 | . 19 . 49 . 12 17 . 7 Successful 69 | . 8 . 49 . 4 8 . . Failed 34 | . 11 . . . 8 8 . 7 Catastrophic 3 | . . . . . . 2 . 1 Database Lockouts 1 | . . . . . . 1 . . Manual 30 | . 19 . . . 2 5 . 4 Terminals 31 | . 19 . . . 2 6 . 4 Fabricators . | . . . . . . . . . Repair Stations . | . . . . . . . . . Recycling Units 8 | . . . . . 5 . . 3 Scanalyzers 16 | . . . . . 5 11 . . Garrison Access . | . . . . . . . . . Terminal Hacks 51 | . 1 . 49 . . 1 . . Record 49 | . . . 49 . . . . . Open DSF 1 | . . . . . . 1 . . Terminal Index 1 | . 1 . . . . . . . Fabricator Hacks . | . . . . . . . . . Repair Station Hacks . | . . . . . . . . . Recycling Unit Hacks 2 | . . . . . 2 . . . Retrieve Components 2 | . . . . . 2 . . . Scanalyzer 6 | . . . . . 1 5 . . Insert Component 2 | . . . . . . 2 . . Analyze 2 | . . . . . . 2 . . Retrieve Study 2 | . . . . . 1 1 . . Garrison Access Hacks . | . . . . . . . . . Unauthorized Hacks 10 | . 7 . . . 1 2 . . Terminals 10 | . 7 . . . 1 2 . . Botnet 3 | . 2 . . . . 1 . . Skim 7 | . 5 . . . 1 1 . . Fabricators . | . . . . . . . . . Repair Stations . | . . . . . . . . . Recycling Units . | . . . . . . . . . Scanalyzers . | . . . . . . . . . Garrison Access . | . . . . . . . . . Data Cores Recovered . | . . . . . . . . . Used . | . . . . . . . . . Hacking Detections 17 | . 7 . . . 4 3 . 3 Full Trace Events 2 | . . . . . 1 . . 1 Feedback Events . | . . . . . . . . . Feedback Blocked . | . . . . . . . . . Robot Schematics Acquired . | . . . . . . . . . Robots Built . | . . . . . . . . . Authchips . | . . . . . . . . . Time . | . . . . . . . . . Total Robot Build Rating . | . . . . . . . . . Part Schematics Acquired 1 | . . . . . . 1 . . Parts Built . | . . . . . . . . . Authchips . | . . . . . . . . . Time . | . . . . . . . . . Total Part Build Rating . | . . . . . . . . . Part Studies Acquired 2 | . . . . . 1 1 . . Parts Repaired . | . . . . . . . . . Time . | . . . . . . . . . Parts Recycled . | . . . . . . . . . Recycled Matter . | . . . . . . . . . Retrieved Matter . | . . . . . . . . . Retrieved Components 17 | . . . . . 17 . . . Parts Scanalyzed 2 | . . . . . . 2 . . Part Schematics Acquired 1 | . . . . . . 1 . . Parts Damaged 1 | . . . . . . 1 . . Bothacking | -11 -10 -10 -10 -9 -8 -7 -7 -6 ------------ Run | Yrd Mat Min Exi Min Mat Fac DSF Fac Used RIF Installer . | . . . . . . . . . Robots Hacked . | . . . . . . . . . Non-combat . | . . . . . . . . . Combat . | . . . . . . . . . Robot Hacks Applied . | . . . . . . . . . Relay Couplers Released . | . . . . . . . . . Fabnet Peak Effective % . | . . . . . . . . . Robots Rewired . | . . . . . . . . . Allies Hacked . | . . . . . . . . . Hacks Repelled . | . . . . . . . . . Allies | -11 -10 -10 -10 -9 -8 -7 -7 -6 -------- Run | Yrd Mat Min Exi Min Mat Fac DSF Fac Total Allies 5 | . . . . 5 . . . . Largest Group 5 | . . . . 5 5 1 1 . Highest-Rated Group 81 | . . . . 81 81 10 10 . Highest-Rated Ally 31 | . . . . 31 31 10 10 . Initial Warlord ECA Mod 9 | . . . . . . . . 9 Total Orders . | . . . . . . . . . Ally Attacks 44 | . . . . 12 32 . . . Total Damage 660 | . . . . 181 479 . . . Kills 12 | . . . . 3 9 . . . Allies Corrupted . | . . . . . . . . . Allies Melted . | . . . . . . . . . Intel | -11 -10 -10 -10 -9 -8 -7 -7 -6 ------- Run | Yrd Mat Min Exi Min Mat Fac DSF Fac Active Infowar (turns) 2986 | 40 470 316 616 532 260 . . 752 Optics 752 | . . . . . . . . 752 Sensors 1 | . . . . 1 . . . . Terrain 118 | . . . . . 118 . . . Seismic 2233 | 40 470 316 616 531 260 . . . Robot Analysis Total . | . . . . . . . . . Derelict Logs Recovered 1 | . . . . 1 . . . . Drone Launches . | . . . . . . . . . Drone Recoveries . | . . . . . . . . . Exploration | -11 -10 -10 -10 -9 -8 -7 -7 -6 ------------- Run | Yrd Mat Min Exi Min Mat Fac DSF Fac Turns Passed 5453 | 127 808 347 616 535 1065 157 509 1289 Spaces Moved 2454 | 65 351 144 492 231 466 83 144 478 Core 14 | 1 . 11 . . . . . 2 Treads 683 | 64 351 80 . . . . 111 77 Legs 1145 | . . . . 164 466 83 33 399 Wheels 612 | . . 53 492 67 . . . . Hover . | . . . . . . . . . Flight . | . . . . . . . . . Fastest Speed 50 | 50 160 110 110 140 190 180 182 175 Average Speed 191 | 158 183 212 124 225 200 181 252 221 Slowest Speed 850 | 160 240 500 140 400 260 190 490 850 Overloaded Moves . | . . . . . . . . . Propulsion Burnouts . | . . . . . . . . . Robots Hopped . | . . . . . . . . . Potential Cave-ins . | . . . . . . . . . Cave-ins Triggered . | . . . . . . . . . Exploration Rate (%) 43 | 4 72 32 91 71 43 4 64 11 Regions Visited 8 Branch Regions 3 Pre-discovered Areas 1 | . . . 1 . . . . . Known Exits Taken 1 | . . . . . . 1 . . Unknown Exits Taken 6 | 1 1 1 1 1 1 . . . Scrap Searched 2 | . . 1 . 1 . . . . Spaces Dug . | . . . . . . . . . Terrain Destroyed 87 | . 5 . . . 11 . 13 58 Melee . | . . . . . . . . . Projectile 15 | . . . . . 4 . 4 7 AOE 72 | . 5 . . . 7 . 9 51 Terrain Rammed . | . . . . . . . . . Walls Destroyed . | . . . . . . . . . Machines Disabled . | . . . . . . . . . Actions | -11 -10 -10 -10 -9 -8 -7 -7 -6 --------- Run | Yrd Mat Min Exi Min Mat Fac DSF Fac Total 2858 | 77 434 163 493 241 541 92 222 595 Wait 69 | . 27 . . . 3 . 13 26 Move 2446 | 64 350 143 491 230 465 82 143 478 Hop . | . . . . . . . . . Pick Up 32 | 1 4 1 . 1 11 . 6 8 Fast Attach 41 | 7 2 3 . 2 10 1 6 10 Attach 31 | . . 1 . 1 2 4 9 14 Detach 21 | . 1 1 . 3 5 4 4 3 Swap 14 | . 5 1 1 . 6 . 1 . Drop 22 | . 1 2 1 1 10 1 5 1 Fire 174 | 5 44 11 . 3 25 . 35 51 Melee . | . . . . . . . . . Ram . | . . . . . . . . . Kick 8 | . . . . . 4 . . 4 Crush . | . . . . . . . . . Escape Stasis . | . . . . . . . . . Rewire . | . . . . . . . . . Trap . | . . . . . . . . . Miscellaneous . | . . . . . . . . . Route ------- -11/Scrapyard -10/Materials (discovered 3 exits: [*Mat x2] / [*Min]) -10/Mines -10/Exiles (discovered 2 exits: [*Min x2]) -9/Mines -8/Materials (discovered 2 exits: *Fac x2) -7/Factory -7/DSF -6/Factory History --------- Turn | Location | Event 11 | -11/Scrapyard | Discovered new exit (range 16) 128 | -11/Scrapyard | Entered Materials 301 | -10/Materials | Build established: Mutant 366 | -10/Materials | Discovered new exit (range 16) 483 | -10/Materials | Discovered new exit (range 14) 804 | -10/Materials | Discovered new exit (range 4) 936 | -10/Materials | Entered Mines 974 | -10/Mines | Met a Derelict bent on vengeance 1114 | -10/Mines | A weapon hastily lodged in a ceiling crevice suddenly fell to the ground 1231 | -10/Mines | Found DCF Scrap (13 items) 1279 | -10/Mines | Deemed a non-threat by the Exiles lab entrance 1279 | -10/Mines | Discovered new exit (range 5) 1283 | -10/Mines | Entered Exiles 1301 | -10/Exiles | Discovered new exit (range 14) 1320 | -10/Exiles | Met 8R-AWN 1336 | -10/Exiles | Met EX-HEX 1386 | -10/Exiles | Met EX-BIN 1582 | -10/Exiles | Met EX-DEC 1610 | -10/Exiles | Learned location of Zion (-6) 1687 | -10/Exiles | Visited The Gauntlet 1883 | -10/Exiles | Discovered new exit (range 11) 1899 | -10/Exiles | Entered Mines 1899 | -9/Mines | Assisted by bots powering up and referring to "LRC-V3" 1967 | -9/Mines | Learned Materials non-interactive machine intel 1981 | -9/Mines | Found a damaged Exp. Sensor Array with a note attached 1984 | -9/Mines | Found Prototype Device 1984 | -9/Mines | Identified Exp. Sensor Array 2299 | -9/Mines | Found a hidden stash of uninstalled traps 2419 | -9/Mines | Discovered new exit (range 5) 2434 | -9/Mines | Entered Materials 2434 | -8/Materials | Accompanied by 5 allies 2434 | -8/Materials | Evolved 4 slots: Propulsion x1, Utility x2, Weapon x1 2435 | -8/Materials | Loaded intel: 50 non-interactive machine locations 2439 | -8/Materials | Led the pair of lost Derelicts to an unsafe place 2725 | -8/Materials | Lost 3 parts (1n2u) 2745 | -8/Materials | Lost 3 allies 2965 | -8/Materials | Discovered new exit (range 13) 2996 | -8/Materials | Build established: Tank 3332 | -8/Materials | Discovered new exit (range 10) 3499 | -8/Materials | Entered Factory 3499 | -7/Factory | Accompanied by 1 ally 3499 | -7/Factory | Evolved 2 slots: Propulsion x1, Utility x1 3524 | -7/Factory | Central database locked down 3650 | -7/Factory | Identified exit to DSF 3656 | -7/Factory | Entered DSF 3656 | -7/DSF | Accompanied by 1 ally 3696 | -7/DSF | Additional patrols routed to DSF 3752 | -7/DSF | Lost 5 parts (1n3u1w) 3826 | -7/DSF | Discovered new exit (range 14) 4013 | -7/DSF | Sterilization system engaged 4033 | -7/DSF | Ambient heat levels rising (+10) 4048 | -7/DSF | Ambient heat levels rising (+10) 4050 | -7/DSF | Build established: Scavenger-Tank 4063 | -7/DSF | Ambient heat levels rising (+10) 4078 | -7/DSF | Ambient heat levels rising (+10) 4093 | -7/DSF | Ambient heat levels rising (+10) 4108 | -7/DSF | Ambient heat levels rising (+10) 4123 | -7/DSF | Ambient heat levels rising (+10) 4138 | -7/DSF | Ambient heat levels rising (+10) 4153 | -7/DSF | Ambient heat levels rising (+10) 4165 | -7/DSF | Entered Factory 4165 | -6/Factory | Evolved 2 slots: Utility x1, Weapon x1 4436 | -6/Factory | Lost 5 parts (2n1u2w) 4517 | -6/Factory | Lost 7 parts (1p3n2u1w) 5406 | -6/Factory | Cargo convoy interrupted 5439 | -6/Factory | Core integrity fell below 50% 5451 | -6/Factory | Core integrity fell below 20% 5454 | -6/Factory | Destroyed by X-67 Chaingunner with Heavy Machine Gun Last Messages --------------- 05437_ U-05 Engineer builds a Wall. 05438_ R-10 Processor collects Targeting Computer. 05438_ Penetrated by Slug. 05439_ Imp. Target Analyzer destroyed. 05440_ TBQZ1N7EAV43L 05443_ R-10 Processor collects Insulated Plating. 05444_ P-60 Hacker resets X-67 Chaingunner, system corruption cleaned. 05446_ M-28 Smith repairs X-67 Chaingunner. 05447_ R-10 Processor collects Core Analyzer. 05447_ R-10 Processor collects Adv. Visual Processing Unit. 05447_ Imp. Deuterium Engine destroyed. 05450_ R-10 Processor collects Cesium-ion Thruster. 05453_ R-10 Processor collects Propulsion Shielding. Map ----- +----------------------------------------------------+ | ?????????????????????????????????????????????????? | | ?????????????????????????????????????????????????? | | ?????????????????????????????????????????????????? | | ?????????????????????????????????????????????????? | | ?????????????????????????????????????????????????? | | ?????????????????????????????????????????????????? | | ?????????????????????????????????????????????????? | | ?????????????????????????????????????????????????? | | ? ???????????????????????????????????????????????? | | ?????????????????????????????????????????????? | | ????????????????????????????#???????????????? | | ??????????????????????????? #???????????????? | | ??????????????????????????? #???????????????? | | ????????????????????????? #???????????????? | | ????????????????????????? #???????????????? | | ???????????????????????? #???????????????? | | ?????????????????????????? #???????????????? | | ??????????????????????????? #???????????????? | | ????????????????????????????? #???????????????? | | ##+#######??##############?? #???????????????? | | [ #??# #?? #???????????????? | | #??# #? #???????????????? | | #??# # #???????????????? | | #??# % # #???????????????? | | #??# """" "" =Rx# #???????????????? | | #??# """" """" @h% +???????????????? | | #### """" """" !# x p #???????????????? | | / + """" """" *#%% #???????????????? | | ## # """" """ # #???????????????? | | ## # """" """" #? #???????????????? | | ## # """" """" #? ??????????????? | | ## # #?? u % ????????????? | | ##+######## ##############??? ??????????? | | ?# ????????? | | ########+#############???????? ???????? | | #????????????????? ??????? | | " " " " " #?????????????????? ??????? | | " " " " " #??????????????????#+##########??????? | | " " " " " #??????????????????? ???????????????? | | " " " " " #???????????????????? ??????????????? | | " " " " " #???????????????????? ??????????????? | | " " " " " #????????????????????? ?????????????? | | " " " " " #?????????????????????" ????????????? | | " " " " " #????????????????????????????????????? | | " " " " " #????????????????????????????????????? | | #????????????????????????????????????? | | #????????????????????????????????????? | | #############????????????????????????????????????? | | ##########???????????????????????????????????????? | | =#??????????????????????????????????????? | +----------------------------------------------------+ Best States ------------- Heat Dissipation 64 Energy Generation 18 Energy Capacity 310 Matter Stores 300 Matter Capacity 300 Sight Range 22 Terrain Scan Range 16 Terrain Scan Density 10 Armor Coverage 825 Evasion (%) 40 Target Analysis 6 Recoil Reduction 4 Kinecelleration 30 Item Schematics ----------------- Hrd. Heavy Armor Plating | -7/Factory | Scanalyzed Robot Schematics ------------------ None Fabricated ------------ Nothing Repaired ---------- Nothing Studied --------- Hvy. Assault Cannon | -8/Materials | Hacked Carbon-fiber Leg | -7/Factory | Hacked Alien Tech Used ----------------- None Achievements -------------- None Challenges ------------ None Game ------ Seed InsulatedDamperTearclaws Manual? 0 Play Time 00:38:52 Cumulative 80.2 hours Start 2026.07.20 @ 13:38:24 End 2026.07.20 @ 14:17:08 Sessions 1 Manual Loads 0 Difficulty Rogue Special Mode None Game No. 83 Rogue 83 Adventurer 0 Explorer 0 Win Type - Total 2 Types 1/0/0/0/0/0/0/0/0/1 Lore% 56 Gallery% 47 Achievement% 43 Wizard Run 0 Options --------- Layout 1 ASCII 0 Keyboard 1 Movement Numpad Keybinds 1 Fullscreen 2 Font 24/Smallcaps Map View 50x40 Zoom Use 0% Tactical HUD 1 Map Filters NONE Filters NONE Steam 1 RUN: 864b57f9-4d69-4498-af8a-3ce104637703